Workbook

Sheet Lernkonzept
C2: Unser Lernkonzept
C15: Teilnehmende der Certified Financial Modeler (CFM) erhalten die kompletten Modelle.
C17: Mehr Informationen zum Certified Financial Modeler (CFM) finden Sie unter: www.certified-financial-modeler.de
C19: Der Certified Financial Modeler (CFM) ist auch Teil unseres MBA Applied Quantitative Finance: www.hfwu.de/qfx

Sheet Disclaimer
B2: Disclaimer
B5: 1. Wer ist der Urheber der vorliegenden Modelle?
B6: Die vorliegende Excel-Modelle wurden von den beiden Direktoren des European Institute of Quantitative Finance (EIQF) „Prof. Dr. Dr. Joachim Häcker“ und „Prof. Dr. Dr. Dietmar Ernst“ erstellt.
B8: Das
B13: ist ein An-Institut der Hochschule Nürtingen.
C15: Teilnehmende der Certified Financial Modeler (CFM) erhalten die kompletten Modelle.
B19: Das EIQF vergibt in Kooperation mit der
B24: den Titel „Certified Financial Modeler".
B27: 2. Sind die vorliegenden Modelle durch das Urheberrechtsgesetz geschützt?
B29: Gemäß § 1 UrhG (Gesetz über Urheberrecht und verwandte Schutzrechte (Urheberrechtsgesetz)) genießen die Urheber von Werken der Wissenschaft für ihre Werke Schutz nach Maßgabe dieses Gesetzes. Gemäß § 2 Abs. 2 UrhG liegt ein Werk dann vor, wenn es sich um eine persönlich-geistige Schöpfung handelt. Auf Software, wie die hier vorliegende Excrel-Modelle, ist der § 69a UrhG anwendbar. Damit ist auf Software das Urheberrecht anwendbar. Jedes Computerprogramm, das statistisch einmalig ist, ist geschützt. All diese Anforderungen treffen auf die vorliegenden Excel-Modelle zu und somit sind die vorliegenden Excel-Modelle durch das Urheberrechtsgesetz geschützt.

Sheet Menü und Doku
B2: Menü | E2: Dokumentation
B3: Dieses Modul enthält folgende Praxisbeispiele: | C3: Farbe der | F3: Projektname: | G3: Modul: Investition und Finanzierung - Teil Investition
B4: (Drücken Sie mit der Maus auf den Hyperlink der Überschrift, um direkt zu dem Tabellenblatt zu gelangen.) | C4: Tabellen-blätter: | F4: Financial Modeler: | G4: Das Team vom Buch Financial Modeling
F5: Dateiname: | G5: Investition
B6: Executive Summary | F6: Letzte Änderung: | G6: Juni 2015
B7: Annahmen Stat. Invest.rechn. | F7: Inhalte der Änderung: | G7: Erstellung der finalen Version
B8: Annahmen Dyn. Invest.rechnung
F9: Aufgabe und Ziel: | G9: Diese Datei enthält die Praxisbeispiele aus dem Modul Investition und Finanzierung für den Teil Investition. Der Aufbau der Excel-Datei entspricht dem allgemeinen Prozess für die Durchführung einer Investitionsrechnung.
B10: Statische Investitionsrechnung
B11: Kostenvergleichsrechnung
B12: Gewinnvergleichsrechnung
B13: Rentabilitätsrechnung | G13: Alle Berechnungen erfolgen direkt in Excel, um die Nachvollziehbarkeit der Berechnung zu ermöglichen.
B14: Stat. Amortisationsrechnung
B15: Vergleich (1)
F16: Bedienungsanleitung: | G16: Nutzen Sie die Financial Models parallel zum Text. Die einzelnen Lernschritte sind in kleinen Einheiten auf separaten Tabellenblättern aufgeteilt.
B17: Dynamische Investitionsrechnung
B18: Kapitalwertmethode | G18: Um alle Elemente des Financial Models verwenden zu können, aktivieren Sie bitte die Makros über den Auswahlpunkt Optionen. Ausführliche Informationen finden Sie in dem Zellenkommentar.
B19: Interne Zinssatzmethode | F19: Makros aktivieren: | G19: Um alle Elemente des Financial Models verwenden zu können, aktivieren Sie bitte die Makros über dem Auswahlpunkt Optionen. Ausführliche Informationen finden Sie in dem Zellenkommentar.
B20: Annuitätenmethode
B21: Vergleich (2)
F23: Iteration aktivieren: | G23: Zusätzlich aktivieren Sie bitte den iterativen Berechnungsmodus über die Office-Schaltfläche Ü Excel-Optionen Ü Formeln Ü Berechnungsoptionen.
F27: Konventionen der Farbwahl: | G27: Input Zellen
G28: Berechnungen und Ausgaben: Grau
G29: Gemischte Zellen (Formeln mit festen Zahlenwerten und Zellbezügen)
B35: Copyright:

Sheet Executive Summary
B2: Statische Investitionsrechnung
B5: Verfahren | C5: Maschine 1 | D5: Maschine 2 | E5: Entscheidung
B7: Kostenvergleichsrechnung | C7: ='Vergleich (1)'!C7 -> 0 | D7: ='Vergleich (1)'!D7 -> 0 | E7: ='Vergleich (1)'!E7 -> 0
B8: Gewinnvergleichsrechnung | C8: ='Vergleich (1)'!C8 -> 0 | D8: ='Vergleich (1)'!D8 -> 0 | E8: ='Vergleich (1)'!E8 -> 0
B9: Rentabilitätsvergleichsrechnung | C9: ='Vergleich (1)'!C9 -> 0 | D9: ='Vergleich (1)'!D9 -> 0 | E9: ='Vergleich (1)'!E9 -> 0
B10: Statische Amortisationsrechnung | C10: ='Vergleich (1)'!C10 -> 0 | D10: ='Vergleich (1)'!D10 -> 0 | E10: ='Vergleich (1)'!E10 -> 0
B19: Dynamische Investitionsrechnung
B22: Investitionen unterschiedlicher | C22: Investition A | D22: Investition B | E22: Investition C | F22: Entscheidung
B23: Höhe und Nutzungsdauer
B24: Kapitalwert | C24: ='Vergleich (2)'!C7 -> 40.79639369 | D24: ='Vergleich (2)'!D7 -> 29.75206612 | E24: ='Vergleich (2)'!E7 -> 24.34259955 | F24: ='Vergleich (2)'!F7 -> Investition A
B25: Interner Zins | C25: ='Vergleich (2)'!C8 -> 0.1943770996 | D25: ='Vergleich (2)'!D8 -> 0.3104686356 | E25: ='Vergleich (2)'!E8 -> 0.2337519285 | F25: ='Vergleich (2)'!F8 -> Investition B
B26: Annuität | C26: ='Vergleich (2)'!C9 -> 16.40483384 | D26: ='Vergleich (2)'!D9 -> 11.96374622 | E26: ='Vergleich (2)'!E9 -> 9.788519637 | F26: ='Vergleich (2)'!F9 -> Investition A

Sheet Annahmen Stat. Invest.rechn.
B2: Annahmen Investitionsobjekt
B4: Ausgangsdaten | E4: Maschine 1 | F4: Maschine 2
B6: Anschaffungskosten abnutzbarer Anlagegüter (in €) | E6: 100000 | F6: 70000
B8: Nutzungsdauer der Anlage (in Jahren) | E8: 5 | F8: 5
B10: Restwert der Anlage (in €) | E10: 10000 | F10: 5000
B12: Anschaffungskosten nicht abnutzbarer Anlagegüter (in €) | E12: 12500 | F12: 9000
B14: Planbeschäftigung (Stück pro Jahr) | E14: 20000 | F14: 20000
B16: Verkaufserlös pro Stück (in €) | E16: 4.2 | F16: 4.3
B18: Fixkosten ohne Kapitalkosten (in €) | E18: 7500 | F18: 5000
B20: Kalkulationszinssatz (% p.a.) | E20: 0.1 | F20: 0.1
B22: Löhne und Lohnnebenkosten (€/Stück) | E22: 0.8 | F22: 1.2
B24: Roh-, Hilfs- und Betriebsstoffe (€/Stück) | E24: 0.2 | F24: 0.2
B26: Sonstige variable Kosten (€/Stück) | E26: 0.1 | F26: 0.3
B29: Planbe- schäftigung
B30: 0
B31: 1000
B32: 2000
B33: 3000
B34: 4000
B35: 5000
B36: 6000
B37: 7000
B38: 8000
B39: 9000
B40: 10000
B41: 11000
B42: 12000
B43: 13000
B44: 14000
B45: 15000
B46: 16000
B47: 17000
B48: 18000
B49: 19000
B50: 20000
B51: 21000
B52: 22000
B53: 23000
B54: 24000
B55: 25000
B56: 26000
B57: 27000
B58: 28000
B59: 29000
B60: 30000

Sheet Annahmen Dyn. Invest.rechnung
B2: Projekt Annahmen
E3: t0 | F3: t1 | G3: t2 | H3: t3 | I3: t4 | J3: t5
B4: Jahr | E4: 0 | F4: =E4+1 -> 1 | G4: =F4+1 -> 2 | H4: 3 | I4: 4 | J4: 5
B5: Investition Anlagevermögen | E5: 1200
B6: Restwert der Anlage am Ende des 5. Jahres (in Tsd. €) | J6: 200
B7: Nutzungsdauer der Anlage (Jahre) | E7: 5
B8: Investition in Roh-, Hilfs- und Betriebsstoffe (in Tsd. €) | E8: 300
B9: Absatzvolumen | E9: 500 | F9: 600 | G9: 600 | H9: 600 | I9: 600 | J9: 600
B10: Verkaufspreis pro LE (€/LE) | F10: 5 | G10: 5 | H10: 5 | I10: 5 | J10: 5
B11: Variable Auszahlungen pro LE (€/LE) | F11: 3 | G11: 3 | H11: 3 | I11: 3 | J11: 3
B12: Fixe Auszahlungen ohne Abschreibung (in Tsd. €) | F12: 500 | G12: 500 | H12: 500 | I12: 500 | J12: 500
B13: Abschreibung, linear über die Nutzungsdauer (in Tsd. €) | F13: =($E$5-$J$6)/$E$7 -> 200 | G13: =($E$5-$J$6)/$E$7 -> 200 | H13: =($E$5-$J$6)/$E$7 -> 200 | I13: =($E$5-$J$6)/$E$7 -> 200 | J13: =($E$5-$J$6)/$E$7 -> 200
B14: Kalkulationszinssatz (% p.a.) | E14: 0.1 | F14: 0.1 | G14: 0.1 | H14: 0.1 | I14: 0.1 | J14: 0.1
B15: Steuersatz (%) | F15: 0.4 | G15: 0.4 | H15: 0.4 | I15: 0.4 | J15: 0.4
B19: Investitionen unterschiedlicher Höhe und Nutzungsdauer
E20: t0 | F20: t1 | G20: t2 | H20: t3
B21: Jahr | E21: 0 | F21: 1 | G21: 2 | H21: 3
B22: Investition A | E22: -200 | F22: 50 | G22: 100 | H22: 150
B23: Investition B | E23: -100 | F23: 70 | G23: 80
B24: Investition C | E24: -100 | F24: 50 | G24: 50 | H24: 50
B25: Kalkulationszinssatz | E25: 0.1

Sheet Kostenvergleichsrechnung
B2: Kostenvergleichsrechnung
B5: Ausgangsdaten | E5: Maschine 1 | F5: Maschine 2
B7: Anschaffungskosten abnutzbarer Anlagegüter | E7: ='Annahmen Stat. Invest.rechn. '!E6 -> 100000 | F7: ='Annahmen Stat. Invest.rechn. '!F6 -> 70000
B8: Nutzungsdauer der Anlage (in Jahren) | E8: ='Annahmen Stat. Invest.rechn. '!E8 -> 5 | F8: ='Annahmen Stat. Invest.rechn. '!F8 -> 5
B9: Restwert der Anlage | E9: ='Annahmen Stat. Invest.rechn. '!E10 -> 10000 | F9: ='Annahmen Stat. Invest.rechn. '!F10 -> 5000
B10: Anschaffungskosten nicht abnutzbarer Anlagegüter | E10: ='Annahmen Stat. Invest.rechn. '!E12 -> 12500 | F10: ='Annahmen Stat. Invest.rechn. '!F12 -> 9000
B11: Durchschnittlich gebundenes Kapital | E11: =E10+E9+(E7-E9)/2 -> 67500 | F11: =F10+F9+(F7-F9)/2 -> 46500
B12: Planbeschäftigung (Stück pro Jahr) | E12: ='Annahmen Stat. Invest.rechn. '!E14 -> 20000 | F12: ='Annahmen Stat. Invest.rechn. '!F14 -> 20000
B13: Fixkosten ohne Kapitalkosten | E13: ='Annahmen Stat. Invest.rechn. '!E18 -> 7500 | F13: ='Annahmen Stat. Invest.rechn. '!F18 -> 5000
B14: Kalkulationszinssatz (% p.a.) | E14: ='Annahmen Stat. Invest.rechn. '!E20 -> 0.1 | F14: ='Annahmen Stat. Invest.rechn. '!F20 -> 0.1
B15: Löhne und Lohnnebenkosten (€/Stück) | E15: ='Annahmen Stat. Invest.rechn. '!E22 -> 0.8 | F15: ='Annahmen Stat. Invest.rechn. '!F22 -> 1.2
B16: Roh-, Hilfs- und Betriebsstoffe (€/Stück) | E16: ='Annahmen Stat. Invest.rechn. '!E24 -> 0.2 | F16: ='Annahmen Stat. Invest.rechn. '!F24 -> 0.2
B17: Sonstige variable Kosten (€/Stück) | E17: ='Annahmen Stat. Invest.rechn. '!E26 -> 0.1 | F17: ='Annahmen Stat. Invest.rechn. '!F26 -> 0.3
B19: Fixe Kosten und Kapitalkosten | E19: Maschine 1 | F19: Maschine 2
B21: Fixe Kosten ohne Kapitalkosten | E21: =E13 -> 7500 | F21: =F13 -> 5000
B22: Abschreibung | E22: =(E7-E9)/E8 -> 18000 | F22: =(F7-F9)/F8 -> 13000
B23: Kalkulatorische Zinsen | E23: =E11*E14 -> 6750 | F23: =F11*F14 -> 4650
B25: Summe fixe Kosten | E25: =E21+E22+E23 -> 32250 | F25: =F21+F22+F23 -> 22650
B27: Variable Kosten | E27: Maschine 1 | F27: Maschine 2
B29: Löhne und Lohnnebenkosten | E29: =E12*E15 -> 16000 | F29: =F12*F15 -> 24000
B30: Roh-, Hilfs- und Betriebsstoffe | E30: =E12*E16 -> 4000 | F30: =F12*F16 -> 4000
B31: Sonstige variable Kosten | E31: =E12*E17 -> 2000 | F31: =F12*F17 -> 6000
B33: Summe variable Kosten | E33: =E29+E30+E31 -> 22000 | F33: =F29+F30+F31 -> 34000
B35: Gesamtkosten | E35: Maschine 1 | F35: Maschine 2
B37: Gesamtkosten | E37: =E25+E33 -> 54250 | F37: =F25+F33 -> 56650
B38: Stückkosten | E38: =E37/E12 -> 2.7125 | F38: =F37/F12 -> 2.8325
B40: Ergebnis der Kostenvergleichsrechnung | E40: Maschine 1 | F40: Maschine 2
B42: Entscheidungskriterium: Alternative mit den geringeren
B43: Gesamtkosten
B44: Stückkosten
B45: Entscheidung
B48: Ermittlung der kritischen Beschäftigung durch Gesamtkostenvergleich
E50: Maschine 1 | F50: Maschine 2
B52: Gesamtkosten
B53: Stückkosten
B55: Kritische Beschäftigung
D58: Planbe- schäftigung | E58: Gesamtkosten Maschine 1 | F58: Gesamtkosten Maschine 2
D59: 0
D60: 1000
D61: =D60+$D$60 -> 2000
D62: =D61+$D$60 -> 3000
D63: 4000
D64: 5000
D65: 6000
D66: 7000
D67: 8000
D68: 9000
D69: 10000
D70: 11000
D71: 12000
D72: 13000
D73: 14000
D74: 15000
D75: 16000
D76: 17000
D77: 18000
D78: 19000
D79: 20000
D80: 21000
D81: 22000
D82: 23000
D83: 24000
D84: 25000
D85: 26000
D86: 27000
D87: 28000
D88: 29000
D89: 30000

Sheet Gewinnvergleichsrechnung
B2: Gewinnvergleichsrechnung
B5: Ausgangsdaten | E5: Maschine 1 | F5: Maschine 2
B7: Anschaffungskosten abnutzbarer Anlagegüter
B8: Nutzungsdauer der Anlage (in Jahren)
B9: Restwert der Anlage
B10: Anschaffungskosten nicht abnutzbarer Anlagegüter
B11: Durchschnittlich gebundenes Kapital
B12: Planbeschäftigung (Stück pro Jahr)
B13: Verkaufserlös pro Stück (in €)
B14: Fixkosten ohne Kapitalkosten
B15: Kalkulationszinssatz (% p.a.)
B16: Löhne und Lohnnebenkosten (€/Stück)
B17: Roh-, Hilfs- und Betriebsstoffe (€/Stück)
B18: Sonstige variable Kosten (€/Stück)
B20: Fixe Kosten und Kapitalkosten | E20: Maschine 1 | F20: Maschine 2
B22: Fixe Kosten ohne Kapitalkosten
B23: Abschreibung
B24: Kalkulatorische Zinsen
B26: Summe fixe Kosten
B28: Variable Kosten | E28: Maschine 1 | F28: Maschine 2
B30: Löhne und Lohnnebenkosten
B31: Roh-, Hilfs- und Betriebsstoffe
B32: Sonstige variable Kosten
B34: Summe variable Kosten
B36: Verkaufserlöse | E36: Maschine 1 | F36: Maschine 2
B38: Verkaufserlöse
B40: Gewinn | E40: Maschine 1 | F40: Maschine 2
B42: Gesamtgewinn = Erlös - gesamte Kosten
B43: Stückgewinn = Gewinn/Planbeschäftigung
B45: Ergebnis | E45: Maschine 1 | F45: Maschine 2
B47: Entscheidungskriterium: Alternative mit dem
B48: höheren Gesamtgewinn
B49: höheren Stückgewinn
B50: Entscheidung
B53: Ermittlung der kritischen Beschäftigung durch Gewinnvergleich
E55: Maschine 1 | F55: Maschine 2
B57: Fixkosten | E57: =E26 -> 0 | F57: =F26 -> 0
B58: Erlös pro Stück | E58: =E13 -> 0 | F58: =F13 -> 0
B59: Variable Stückkosten | E59: =E34/E12 ->  | F59: =F34/F12 -> 
B60: Erlös pro Stück minus variable Stückkosten | E60: =E58-E59 ->  | F60: =F58-F59 -> 
B62: Kritische Beschäftigung | E62: =(E57-F57)/(E60-F60) -> 
D65: Planbe- schäftigung | E65: Gesamtgewinn Maschine 1 | F65: Gesamtgewinn Maschine 2
D66: 0
D67: 1000
D68: 2000
D69: 3000
D70: 4000
D71: 5000
D72: 6000
D73: 7000
D74: 8000
D75: 9000
D76: 10000
D77: 11000
D78: 12000
D79: 13000
D80: 14000
D81: 15000
D82: 16000
D83: 17000
D84: 18000
D85: 19000
D86: 20000
D87: 21000
D88: 22000
D89: 23000
D90: 24000
D91: 25000
D92: 26000
D93: 27000
D94: 28000
D95: 29000
D96: 30000

Sheet Rentabilitätsrechnung
B2: Rentabilitätsrechnung
B5: Ausgangsdaten | E5: Maschine 1 | F5: Maschine 2
B7: Anschaffungskosten abnutzbarer Anlagegüter
B8: Nutzungsdauer der Anlage (in Jahren)
B9: Restwert der Anlage
B10: Anschaffungskosten nicht abnutzbarer Anlagegüter
B11: Durchschnittlich gebundenes Kapital
B12: Planbeschäftigung (Stück pro Jahr)
B13: Verkaufserlös pro Stück (Euro)
B14: Fixkosten ohne Kapitalkosten
B15: Kalkulationszinssatz (% p.a.)
B16: Löhne und Lohnnebenkosten (€/Stück)
B17: Roh-, Hilfs- und Betriebsstoffe (€/Stück)
B18: Sonstige variable Kosten (€/Stück)
B20: Fixe Kosten und Kapitalkosten | E20: Maschine 1 | F20: Maschine 2
B22: Fixe Kosten ohne Kapitalkosten
B23: Abschreibung
B24: Kalkulatorische Zinsen
B26: Summe fixe Kosten
B28: Variable Kosten | E28: Maschine 1 | F28: Maschine 2
B30: Löhne und Lohnnebenkosten
B31: Roh-, Hilfs- und Betriebsstoffe
B32: Sonstige variable Kosten
B34: Summe variable Kosten
B36: Verkaufserlöse | E36: Maschine 1 | F36: Maschine 2
B38: Verkaufserlöse
B40: Gewinn | E40: Maschine 1 | F40: Maschine 2
B42: Gesamtgewinn = Erlös - gesamte Kosten
B43: Gewinn vor Zinsen = Gewinn + Zinsen
B45: Gesamtrentabilität | E45: Maschine 1 | F45: Maschine 2
B47: Gesamtkapitalrentabilität = Gewinn vor Zinsen/ durchschnittlich gebundenes Kapital
B49: Ergebnis | E49: Maschine 1 | F49: Maschine 2
B51: Gesamtkapitalrentabilität = Gewinn vor Zinsen/ durchschnittlich gebundenes Kapital
B52: Entscheidung

Sheet Stat. Amortisationsrechnung
B2: Statische Amortisationsrechnung
B5: Ausgangsdaten | E5: Maschine 1 | F5: Maschine 2
B7: Anschaffungskosten abnutzbarer Anlagegüter
B8: Nutzungsdauer der Anlage (in Jahren)
B9: Restwert der Anlage
B10: Anschaffungskosten nicht abnutzbarer Anlagegüter
B11: Durchschnittlich gebundenes Kapital
B12: Planbeschäftigung (Stück pro Jahr)
B13: Verkaufserlös pro Stück (Euro)
B14: Fixkosten ohne Kapitalkosten
B15: Kalkulationszinssatz (% p.a.)
B16: Löhne und Lohnnebenkosten (€/Stück)
B17: Roh-, Hilfs- und Betriebsstoffe (€/Stück)
B18: Sonstige variable Kosten (€/Stück)
B20: Fixe Kosten und Kapitalkosten | E20: Maschine 1 | F20: Maschine 2
B22: Fixe Kosten ohne Kapitalkosten
B23: Abschreibung
B24: Kalkulatorische Zinsen
B26: Summe fixe Kosten
B28: Variable Kosten | E28: Maschine 1 | F28: Maschine 2
B30: Löhne und Lohnnebenkosten
B31: Roh-, Hilfs- und Betriebsstoffe
B32: Sonstige variable Kosten
B34: Summe variable Kosten
B36: Verkaufserlöse | E36: Maschine 1 | F36: Maschine 2
B38: Verkaufserlöse
B40: Gewinn | E40: Maschine 1 | F40: Maschine 2
B42: Gesamtgewinn = Erlös - gesamte Kosten
B43: Rückfluss = Gewinn + "verdiente" Abschreibung
B45: Amortisationsdauer | E45: Maschine 1 | F45: Maschine 2
B47: Amortisationsdauer = Kapitaleinsatz/Rückfluss
B49: Ergebnis | E49: Maschine 1 | F49: Maschine 2
B51: Amortisationsdauer = Kapitaleinsatz/Rückfluss
B52: Entscheidung

Sheet Vergleich (1)
B2: Statische Investitionsrechnung
B5: Verfahren | C5: Maschine 1 | D5: Maschine 2 | E5: Entscheidung
B7: Kostenvergleichsrechnung
B8: Gewinnvergleichsrechnung
B9: Rentabilitätsvergleichsrechnung
B10: Statische Amortisationsrechnung

Sheet Kapitalwertmethode
B2: Kapitalwertmethode
B5: Cashflow Berechnung
E6: t0 | F6: t1 | G6: t2 | H6: t3 | I6: t4 | J6: t5
B7: Investition Anlagevermögen
B8: Investition Umlaufvermögen
B9: Investitionssumme
B10: Absatzvolumen
B11: Verkaufspreis pro LE
B12: Umsatzerlöse
B13: Variable Auszahlungen pro LE
B14: Variable Auszahlungen
B15: Fixe Auszahlungen (ohne AfA)
B16: Abschreibung
B18: Einkommen vor Steuern
B20: Steuern
B22: Nettogewinn
B24: Abschreibung
B25: Verkauf zum Buchwert
B27: Cashflow
B31: Projektanalyse
E32: t0 | F32: t1 | G32: t2 | H32: t3 | I32: t4 | J32: t5
B33: Jahr
B34: Kalkulationszinssatz
B35: Barwertfaktoren
B36: Barwerte
B38: Kapitalwert (NPV) (Berechnung 1)
B39: Kapitalwert (NPV) (Berechnung 2)
B41: Interner Zinssatz
B43: Gewinnannuität
B47: Finanzplan I
E48: t0 | F48: t1 | G48: t2 | H48: t3 | I48: t4 | J48: t5
B49: Investitionszahlung
B50: Kreditaufnahme
B51: Kredit Anfang des Jahres
B52: Zinszahlung
B53: Tilgung
B54: Kredit Ende des Jahres
B55: Gewinn
B56: Barwert
B60: Finanzplan II
E61: t0 | F61: t1 | G61: t2 | H61: t3 | I61: t4 | J61: t5
B62: Investitionszahlungen
B63: Kreditaufnahme
B64: Kredit Anfang des Jahres
B65: Zinszahlung
B66: Tilgung
B67: Kredit Ende des Jahres
B68: Gewinn

Sheet Interne Zinssatzmethode
B2: Interne Zinssatzmethode
B5: Finanzplan I
E6: t0 | F6: t1 | G6: t2 | H6: t3 | I6: t4 | J6: t5
B7: Investitionszahlungen
B8: Interner Zins
B14: Alternativ- Zinssatz i | C14: NPV
B16: 0
B17: 0.02
B18: 0.04
B19: 0.06
B20: 0.08
B21: 0.1
B22: 0.12
B23: 0.14
B24: 0.16
B25: 0.18
B26: 0.2
B27: 0.22
B28: 0.24
B29: 0.26
B30: 0.28
B31: 0.3

Sheet Annuitätenmethode
B2: Annuitätenmethode
B5: Projektanalyse
E6: t0 | F6: t1 | G6: t2 | H6: t3 | I6: t4 | J6: t5
B7: Jahr
B8: Kalkulationszinssatz
B9: Barwertfaktoren
B10: Investitionszahlungen
B11: Barwerte
B14: Finanzplan III
E15: t0 | F15: t1 | G15: t2 | H15: t3 | I15: t4 | J15: t5
B16: Kreditaufnahme
B17: Kredit Anfang des Jahres
B18: Annuität AF
B19: Zinsen
B20: Tilgung
B21: Kredit Ende des Jahres
B22: Annuität AI
B23: Gewinn = AI - AF

Sheet Vergleich (2)
B2: Dynamische Investitionsrechnung
B5: Investitionen unterschiedlicher | C5: Investition A | D5: Investition B | E5: Investition C | F5: Entscheidung
B6: Höhe und Nutzungsdauer
B7: Kapitalwert | C7: =NPV('Annahmen Dyn. Invest.rechnung'!E25,'Annahmen Dyn. Invest.rechnung'!F22:H22)+'Annahmen Dyn. Invest.rechnung'!E22 -> 40.79639369 | D7: =NPV('Annahmen Dyn. Invest.rechnung'!E25,'Annahmen Dyn. Invest.rechnung'!F23:G23)+'Annahmen Dyn. Invest.rechnung'!E23 -> 29.75206612 | E7: =NPV('Annahmen Dyn. Invest.rechnung'!E25,'Annahmen Dyn. Invest.rechnung'!F24:H24)+'Annahmen Dyn. Invest.rechnung'!E24 -> 24.34259955 | F7: =INDEX($C$5:$E$6,1,MATCH(MAX(C7:E7),C7:E7,0)) -> Investition A
B8: Interner Zins | C8: =IRR('Annahmen Dyn. Invest.rechnung'!E22:H22) -> 0.1943770996 | D8: =IRR('Annahmen Dyn. Invest.rechnung'!E23:G23) -> 0.3104686356 | E8: =IRR('Annahmen Dyn. Invest.rechnung'!E24:H24) -> 0.2337519285 | F8: =INDEX($C$5:$E$6,1,MATCH(MAX(C8:E8),C8:E8,0)) -> Investition B
B9: Annuität | C9: =PMT('Annahmen Dyn. Invest.rechnung'!$E$25,'Annahmen Dyn. Invest.rechnung'!$H$21,-C7) -> 16.40483384 | D9: =PMT('Annahmen Dyn. Invest.rechnung'!$E$25,'Annahmen Dyn. Invest.rechnung'!$H$21,-D7) -> 11.96374622 | E9: =PMT('Annahmen Dyn. Invest.rechnung'!$E$25,'Annahmen Dyn. Invest.rechnung'!$H$21,-E7) -> 9.788519637 | F9: Investition A
